[Event "15th Lazio Festival 2022"]
[Site "Rome"]
[Date "2022.01.02"]
[Round "1.1"]
[White "Petrov, Marian"]
[Black "Pastore, Cosmas"]
[Result "1-0"]
[ECO "C54"]
[WhiteElo "2461"]
[BlackElo "1807"]
[Annotator "ChessBase"]
[PlyCount "111"]
[EventDate "2022.01.02"]
[EventType "swiss"]
[EventCountry "ITA"]
[SourceTitle "playchess.com"]
[Source "ChessBase"]
[SourceQuality "1"]
[TimeControl "5400+30"]

1. e4 {[%emt 0:00:05]} e5 {[%emt 0:00:04]} 2. Nf3 {[%emt 0:00:36]} Nc6 {[%emt 0:00:03]} 3. Bc4 {[%emt 0:00:53]} Nf6 {[%emt 0:00:03]} 4. d3 {[%emt 0:00:25]} Bc5 {[%emt 0:00:04]} 5. O-O {[%emt 0:00:27]} O-O {[%emt 0:00:09]} 6. a4 {[%emt 0:00:52]} d6 {[%emt 0:00:46]} 7. c3 {[%emt 0:02:00]} a5 {[%emt 0:01:49]} 8. Nbd2 {[%emt 0:01:26]} h6 {[%emt 0:01:12]} 9. Re1 {[%emt 0:00:54]} Ng4 {[%emt 0:02:07]} 10. Re2 {[%emt 0:00:45]} Bb6 {[%emt 0:01:34]} 11. Nf1 {[%emt 0:00:38]} Ne7 {[%emt 0:01:38]} 12. h3 {[%emt 0:01:19]} Nf6 {[%emt 0:00:53]} 13. Ng3 {[%emt 0:03:45]} Ng6 {[%emt 0:01:14]} 14. d4 {[%emt 0:03:30]} Re8 {[%emt 0:05:44]} 15. Be3 {[%emt 0:10:55]} exd4 {[%emt 0:04:29]} 16. Bxd4 {[%emt 0:00:35]} Bxd4 {[%emt 0:03:38]} 17. Nxd4 {[%emt 0:02:38]} Nf4 {[%emt 0:10:33]} 18. Re3 {[%emt 0:02:49]} d5 {[%emt 0:12:10]} 19. exd5 {[%emt 0:01:54]} Rxe3 {[%emt 0:07:37]} 20. fxe3 {[%emt 0:01:37]} N4xd5 {[%emt 0:00:58]} 21. Qf3 {[%emt 0:05:11]} Nb6 {[%emt 0:02:17]} 22. Bb3 {[%emt 0:00:25]} c5 {[%emt 0:02:45]} 23. Ndf5 {[%emt 0:05:40]} Bxf5 {[%emt 0:09:55]} 24. Nxf5 {[%emt 0:00:58]} c4 {[%emt 0:00:47]} 25. Rd1 {[%emt 0:01:45]} Qc7 {[%emt 0:00:52]} 26. Bc2 {[%emt 0:01:25]} Nbd7 {[%emt 0:10:45]} 27. Nd6 {[%emt 0:05:44]} Rb8 {[%emt 0:05:17]} 28. Rd4 {[%emt 0:03:59]} Ne5 {[%emt 0:03:06]} 29. Qf4 {[%emt 0:02:27]} Nd3 {[%emt 0:01:53]} 30. Rxc4 {[%emt 0:01:35]} Nxf4 {[%emt 0:00:39]} 31. Rxc7 {[%emt 0:00:08]} N4d5 {[%emt 0:00:15]} 32. Rxb7 {[%emt 0:00:29]} Rxb7 {[%emt 0:01:34]} 33. Nxb7 {[%emt 0:00:08]} Nxe3 {[%emt 0:00:16]} 34. Bb3 {[%emt 0:01:21]} Ne4 {[%emt 0:00:35]} 35. Nxa5 {[%emt 0:00:25]} Nd2 {[%emt 0:00:51]} 36. Kf2 {[%emt 0:01:02]} Nxb3 {[%emt 0:00:38]} 37. Nxb3 {[%emt 0:00:55]} Nd1+ {[%emt 0:00:08]} 38. Ke2 {[%emt 0:01:24]} Nxb2 {[%emt 0:00:12]} 39. a5 {[%emt 0:00:06]} Kf8 {[%emt 0:03:29]} 40. a6 {[%emt 0:02:22]} Na4 {[%emt 0:00:36]} 41. Kd3 {[%emt 0:02:11]} Ke7 {[%emt 0:05:35]} 42. a7 {[%emt 0:02:27]} Nb6 {[%emt 0:00:19]} 43. c4 {[%emt 0:01:10]} Kd7 {[%emt 0:00:31]} 44. c5 {[%emt 0:00:35]} Na8 {[%emt 0:00:16]} 45. Kc4 {[%emt 0:00:06]} Nc7 {[%emt 0:01:35]} 46. Nd4 {[%emt 0:00:29]} Na8 {[%emt 0:01:03]} 47. Nf5 {[%emt 0:02:35]} Kc6 {[%emt 0:00:20]} 48. Nxg7 {[%emt 0:00:35]} Kb7 {[%emt 0:00:14]} 49. Nf5 {[%emt 0:00:45]} h5 {[%emt 0:00:23]} 50. h4 {[%emt 0:03:01]} Kxa7 {[%emt 0:00:18]} 51. g4 {[%emt 0:01:33]} Nc7 {[%emt 0:00:57]} 52. gxh5 {[%emt 0:00:30]} Ne6 {[%emt 0:00:40]} 53. h6 {[%emt 0:00:17]} Nf8 {[%emt 0:00:25]} 54. Kd5 {[%emt 0:00:43]} Kb7 {[%emt 0:00:21]} 55. Kd6 {[%emt 0:00:12]} Kc8 {[%emt 0:00:22]} 56. c6 {[%emt 0:00:19]} 1-0

[Event "15th Lazio Festival 2022"]
[Site "Rome"]
[Date "2022.01.02"]
[Round "1.2"]
[White "Porcu, Riccardo"]
[Black "Aghayev, Miragha"]
[Result "0-1"]
[ECO "B57"]
[WhiteElo "1771"]
[BlackElo "2393"]
[Annotator "ChessBase"]
[PlyCount "66"]
[EventDate "2022.01.02"]
[EventType "swiss"]
[EventCountry "ITA"]
[SourceTitle "playchess.com"]
[Source "ChessBase"]
[SourceQuality "1"]
[TimeControl "5400+30"]

1. e4 {[%emt 0:00:05]} c5 {[%emt 0:17:52]} 2. Nf3 {[%emt 0:00:06]} d6 {[%emt 0:00:20]} 3. d4 {[%emt 0:00:06]} cxd4 {[%emt 0:00:06]} 4. Nxd4 {[%emt 0:00:05]} Nf6 {[%emt 0:00:04]} 5. Nc3 {[%emt 0:00:06]} Bd7 {[%emt 0:00:04]} 6. Bc4 {[%emt 0:06:04]} Nc6 {[%emt 0:00:17]} 7. O-O {[%emt 0:03:08]} g6 {[%emt 0:00:27]} 8. Kh1 {[%emt 0:02:29]} Bg7 {[%emt 0:00:21]} 9. Nxc6 {[%emt 0:01:59]} Bxc6 {[%emt 0:10:06]} 10. f3 {[%emt 0:00:29]} O-O {[%emt 0:00:08]} 11. Be3 {[%emt 0:04:44]} a6 {[%emt 0:01:50]} 12. a4 {[%emt 0:13:22]} Qa5 {[%emt 0:07:36]} 13. Nd5 {[%emt 0:10:31]} Bxd5 {[%emt 0:05:08]} 14. exd5 {[%emt 0:04:07]} Rac8 {[%emt 0:01:01]} 15. Bb3 {[%emt 0:02:08]} Nd7 {[%emt 0:01:53]} 16. Bd4 {[%emt 0:02:35]} Bxd4 {[%emt 0:01:17]} 17. Qxd4 {[%emt 0:00:06]} Nc5 {[%emt 0:00:26]} 18. Bc4 {[%emt 0:09:32]} Qb4 {[%emt 0:02:23]} 19. Rfd1 {[%emt 0:14:59]} Nxa4 {[%emt 0:06:51]} 20. Bxa6 {[%emt 0:02:12]} Qxd4 {[%emt 0:01:54]} 21. Rxd4 {[%emt 0:00:08]} bxa6 {[%emt 0:03:23]} 22. Rdxa4 {[%emt 0:06:17]} Rxc2 {[%emt 0:00:31]} 23. Rxa6 {[%emt 0:02:06]} Rxb2 {[%emt 0:03:14]} 24. h3 {[%emt 0:00:21]} Re2 {[%emt 0:00:28]} 25. R1a2 {[%emt 0:02:22]} Re1+ {[%emt 0:01:47]} 26. Kh2 {[%emt 0:00:07]} Rc8 {[%emt 0:00:21]} 27. Rc6 {[%emt 0:05:07]} Rb8 {[%emt 0:00:40]} 28. Rc7 {[%emt 0:03:26]} Kg7 {[%emt 0:00:20]} 29. Raa7 {[%emt 0:03:04]} Kf6 {[%emt 0:00:09]} 30. g4 {[%emt 0:00:49]} Rb2+ {[%emt 0:00:49]} 31. Kg3 {[%emt 0:00:06]} Rg1+ {[%emt 0:02:02]} 32. Kf4 {[%emt 0:00:04]} Re2 {[%emt 0:00:19]} 33. h4 {[%emt 0:01:32]} h6 {[%emt 0:00:12]} 0-1

[Event "15th Lazio Festival 2022"]
[Site "Rome"]
[Date "2022.01.02"]
[Round "1.3"]
[White "D`antonio, Neri"]
[Black "Spada, Dario"]
[Result "1-0"]
[ECO "C06"]
[WhiteElo "2280"]
[BlackElo "1749"]
[Annotator "ChessBase"]
[PlyCount "51"]
[EventDate "2022.01.02"]
[EventType "swiss"]
[EventCountry "ITA"]
[SourceTitle "playchess.com"]
[Source "ChessBase"]
[SourceQuality "1"]
[TimeControl "5400+30"]

1. e4 {[%emt 0:00:03]} e6 {[%emt 0:00:11]} 2. d4 {[%emt 0:00:16]} d5 {[%emt 0:00:06]} 3. Nd2 {[%emt 0:00:13]} Nf6 {[%emt 0:00:49]} 4. e5 {[%emt 0:00:17]} Nfd7 {[%emt 0:00:06]} 5. Bd3 {[%emt 0:00:56]} c5 {[%emt 0:00:07]} 6. c3 {[%emt 0:00:06]} Nc6 {[%emt 1:32:11]} 7. Ne2 {[%emt 0:00:14]} Qb6 {[%emt 0:00:00]} 8. Nf3 {[%emt 0:04:58]} Be7 {[%emt 0:00:00]} 9. O-O {[%emt 0:01:31]} cxd4 {[%emt 0:00:00]} 10. cxd4 {[%emt 0:00:47]} a5 {[%emt 0:00:00]} 11. Re1 {[%emt 0:12:29]} Nb4 {[%emt 0:00:00]} 12. Bb1 {[%emt 0:01:04]} Qa7 {[%emt 0:00:00]} 13. Nc3 {[%emt 0:01:44]} Nb6 {[%emt 0:00:00]} 14. Bg5 {[%emt 0:04:37]} Bd7 {[%emt 0:00:00]} 15. a3 {[%emt 0:07:05]} Nc6 {[%emt 0:00:00]} 16. Nb5 {[%emt 0:01:07]} Qb8 {[%emt 0:00:00]} 17. Bxe7 {[%emt 0:00:28]} Kxe7 {[%emt 0:00:00]} 18. Nd6 {[%emt 0:01:52]} h6 {[%emt 0:00:00]} 19. Nh4 {[%emt 0:25:46]} Nc8 {[%emt 0:00:00]} 20. Qf3 {[%emt 0:04:48]} Rf8 {[%emt 0:00:00]} 21. Bg6 {[%emt 0:19:26]} Nxd4 {[%emt 0:02:26]} 22. Qf4 {[%emt 0:01:11]} Nb5 {[%emt 0:02:50]} 23. Bxf7 {[%emt 0:02:10]} Ncxd6 {[%emt 0:02:41]} 24. Ng6+ {[%emt 0:00:25]} Kd8 {[%emt 0:00:23]} 25. Nxf8 {[%emt 0:00:58]} Nf5 {[%emt 0:00:37]} 26. Bxe6 {[%emt 0:00:42]} 1-0

[Event "15th Lazio Festival 2022"]
[Site "Rome"]
[Date "2022.01.02"]
[Round "1.4"]
[White "Campanella, Giovanni"]
[Black "Corvi, Marco"]
[Result "0-1"]
[ECO "A07"]
[WhiteElo "1763"]
[BlackElo "2288"]
[Annotator "ChessBase"]
[PlyCount "66"]
[EventDate "2022.01.02"]
[EventType "swiss"]
[EventCountry "ITA"]
[SourceTitle "playchess.com"]
[Source "ChessBase"]
[SourceQuality "1"]
[TimeControl "5400+30"]

1. g3 {[%emt 0:00:05]} d5 {[%emt 0:00:45]} 2. Nf3 {[%emt 0:00:17]} Nc6 {[%emt 0:01:19]} 3. Bg2 {[%emt 0:00:28]} e5 {[%emt 0:01:06]} 4. d3 {[%emt 0:00:49]} f6 {[%emt 0:00:45]} 5. O-O {[%emt 0:00:27]} Be6 {[%emt 0:00:06]} 6. b3 {[%emt 0:02:27]} Qd7 {[%emt 0:00:05]} 7. Bb2 {[%emt 0:01:32]} h5 {[%emt 0:02:28]} 8. c4 {[%emt 0:04:11]} Nge7 {[%emt 0:05:26]} 9. cxd5 {[%emt 0:03:14]} Nxd5 {[%emt 0:06:07]} 10. Nc3 {[%emt 0:01:55]} O-O-O {[%emt 0:05:43]} 11. a3 {[%emt 0:03:56]} g5 {[%emt 0:05:27]} 12. b4 {[%emt 0:04:29]} h4 {[%emt 0:00:59]} 13. b5 {[%emt 0:02:12]} Nd4 {[%emt 0:03:02]} 14. Ne4 {[%emt 0:06:55]} Nxf3+ {[%emt 0:03:00]} 15. Bxf3 {[%emt 0:00:39]} hxg3 {[%emt 0:00:09]} 16. fxg3 {[%emt 0:01:50]} Qh7 {[%emt 0:05:20]} 17. Rf2 {[%emt 0:02:17]} Kb8 {[%emt 0:07:46]} 18. Qa4 {[%emt 0:02:25]} g4 {[%emt 0:04:50]} 19. Nxf6 {[%emt 0:10:34]} Nxf6 {[%emt 0:02:29]} 20. Bxb7 {[%emt 0:00:12]} Bc5 {[%emt 0:02:04]} 21. d4 {[%emt 0:00:43]} Rxd4 {[%emt 0:00:57]} 22. Bxd4 {[%emt 0:02:11]} Bxd4 {[%emt 0:00:04]} 23. Bg2 {[%emt 0:01:08]} Qxh2+ {[%emt 0:03:01]} 24. Kf1 {[%emt 0:02:17]} Qh1+ {[%emt 0:02:41]} 25. Bxh1 {[%emt 0:00:30]} Rxh1+ {[%emt 0:00:04]} 26. Kg2 {[%emt 0:01:16]} Bd5+ {[%emt 0:00:04]} 27. Rf3 {[%emt 0:00:11]} Rxa1 {[%emt 0:00:14]} 28. Qb4 {[%emt 0:06:02]} Kb7 {[%emt 0:07:45]} 29. Qe7 {[%emt 0:04:14]} gxf3+ {[%emt 0:03:38]} 30. exf3 {[%emt 0:00:41]} Rg1+ {[%emt 0:01:19]} 31. Kh3 {[%emt 0:00:06]} Bxf3 {[%emt 0:00:54]} 32. Kh4 {[%emt 0:06:18]} Be3 {[%emt 0:01:11]} 33. g4 {[%emt 0:00:09]} Bf4 {[%emt 0:01:25]} 0-1

[Event "15th Lazio Festival 2022"]
[Site "Rome"]
[Date "2022.01.02"]
[Round "1.6"]
[White "Silici, Renato"]
[Black "Lami, Damiano"]
[Result "0-1"]
[ECO "D45"]
[WhiteElo "1727"]
[BlackElo "2019"]
[Annotator "NA"]
[PlyCount "77"]
[EventDate "2022.01.02"]
[EventType "swiss"]
[EventCountry "ITA"]
[SourceTitle "playchess.com"]
[Source "ChessBase"]
[SourceQuality "1"]
[TimeControl "5400+30"]

1. c4 {[%emt 1:31:00]} Nf6 {[%emt 1:31:00]} 2. Nc3 {[%emt 0:00:30]} e6 {[%emt 0:00:30]} 3. Nf3 {[%emt 0:00:30]} d5 {[%emt 0:00:30]} 4. d4 {[%emt 0:00:30]} c6 {[%emt 0:00:30]} 5. e3 {[%emt 0:00:30]} Nbd7 {[%emt 0:00:30]} 6. cxd5 {[%emt 0:00:30]} exd5 {[%emt 0:00:30]} 7. Bd3 {[%emt 0:00:30]} Bd6 {[%emt 0:00:30]} 8. O-O {[%emt 0:00:30]} O-O {[%emt 0:00:30]} 9. Nd2 {[%emt 0:00:30]} Re8 {[%emt 0:00:30]} 10. Re1 {[%emt 0:00:30]} Qc7 {[%emt 0:00:30]} 11. h3 {[%emt 0:00:30]} b5 {[%emt 0:00:30]} 12. a3 {[%emt 0:00:30]} a5 {[%emt 0:00:30]} 13. e4 {[%emt 0:00:30]} dxe4 {[%emt 0:00:30]} 14. Ndxe4 {[%emt 0:00:30]} Bh2+ {[%emt 0:00:30]} 15. Kh1 {[%emt 0:00:30]} Bd6 {[%emt 0:00:30]} 16. Bg5 {[%emt 0:00:30]} Nxe4 {[%emt 0:00:30]} 17. Nxe4 {[%emt 0:00:30]} Re6 {[%emt 0:00:30]} 18. Rc1 {[%emt 0:00:30]} Bf4 {[%emt 0:00:30]} 19. d5 {[%emt 0:00:30]} Rxe4 {[%emt 0:00:30]} 20. Rxe4 {[%emt 0:00:30]} Bxg5 {[%emt 0:00:30]} 21. Re8+ {[%emt 0:00:30]} Nf8 {[%emt 0:00:30]} 22. Qh5 {[%emt 0:00:30]} h6 {[%emt 0:00:30]} 23. Rxc6 {[%emt 0:00:30]} Qd7 {[%emt 0:00:30]} 24. Re5 {[%emt 0:00:30]} Bb7 {[%emt 0:00:30]} 25. Bxb5 {[%emt 0:00:30]} Qd8 {[%emt 0:00:30]} 26. Rc4 {[%emt 0:00:30]} Bxd5 {[%emt 0:00:30]} 27. Rc2 {[%emt 0:00:30]} Ne6 {[%emt 0:00:30]} 28. h4 {[%emt 0:00:30]} Bxg2+ {[%emt 0:00:30]} 29. Kg1 {[%emt 0:00:30]} Qb8 {[%emt 0:00:30]} 30. Rce2 {[%emt 0:00:30]} Nf4 {[%emt 0:00:30]} 31. Re8+ {[%emt 0:00:30]} Qxe8 {[%emt 0:00:30]} 32. Rxe8+ Rxe8 {[%emt 0:00:30]} 33. Qd1 {[%emt 0:01:00]} Re5 {[%emt 0:00:30]} 34. hxg5 {[%emt 0:00:30]} Rxg5 {[%emt 0:00:30]} 35. Qd8+ {[%emt 0:00:30]} Kh7 {[%emt 0:00:30]} 36. Bd3+ {[%emt 0:00:30]} Nxd3 {[%emt 0:00:30]} 37. Qxd3+ {[%emt 0:00:30]} Be4+ {[%emt 0:00:30]} 38. Qg3 {[%emt 0:00:30]} Rxg3+ {[%emt 0:00:30]} 39. fxg3 {[%emt 0:00:30]} 0-1

[Event "15th Lazio Festival 2022"]
[Site "Rome"]
[Date "2022.01.03"]
[Round "3.1"]
[White "Petrov, Marian"]
[Black "Corvi, Marco"]
[Result "1/2-1/2"]
[ECO "B22"]
[WhiteElo "2461"]
[BlackElo "2288"]
[Annotator "ChessBase"]
[PlyCount "46"]
[EventDate "2022.01.02"]
[EventType "swiss"]
[EventCountry "ITA"]
[SourceTitle "playchess.com"]
[Source "ChessBase"]
[SourceQuality "1"]
[TimeControl "5400+30"]

1. e4 {[%emt 0:01:38]} c5 {[%emt 0:00:19]} 2. c3 {[%emt 0:01:16]} Nf6 {[%emt 0:00:29]} 3. e5 {[%emt 0:00:08]} Nd5 {[%emt 0:00:05]} 4. Nf3 {[%emt 0:00:29]} Nc6 {[%emt 0:04:17]} 5. d4 {[%emt 0:01:22]} cxd4 {[%emt 0:00:10]} 6. cxd4 {[%emt 0:00:32]} d6 {[%emt 0:02:30]} 7. Bc4 {[%emt 0:02:01]} Nb6 {[%emt 0:05:43]} 8. Bb5 {[%emt 0:00:24]} dxe5 {[%emt 0:02:47]} 9. Nxe5 {[%emt 0:00:10]} Bd7 {[%emt 0:01:14]} 10. Nxd7 {[%emt 0:03:26]} Qxd7 {[%emt 0:00:09]} 11. Nc3 {[%emt 0:00:25]} Rd8 {[%emt 0:03:13]} 12. O-O {[%emt 0:16:53]} e6 {[%emt 0:06:05]} 13. Bxc6 {[%emt 0:11:08]} bxc6 {[%emt 0:05:21]} 14. Bg5 {[%emt 0:04:39]} Be7 {[%emt 0:00:50]} 15. Bxe7 {[%emt 0:08:01]} Qxe7 {[%emt 0:00:06]} 16. Qf3 {[%emt 0:00:04]} O-O {[%emt 0:01:27]} 17. Qxc6 {[%emt 0:04:00]} Rxd4 {[%emt 0:01:25]} 18. Rfd1 {[%emt 0:01:00]} Rxd1+ {[%emt 0:03:31]} 19. Rxd1 {[%emt 0:00:04]} Rc8 {[%emt 0:03:20]} 20. Qb5 {[%emt 0:00:40]} h6 {[%emt 0:02:54]} 21. a4 {[%emt 0:03:10]} Rc5 {[%emt 0:04:51]} 22. Qe2 {[%emt 0:07:42]} Rc7 {[%emt 0:05:18]} 23. Qb5 {[%emt 0:11:37]} Rc5 {[%emt 0:03:25]} 1/2-1/2

[Event "15th Lazio Festival 2022"]
[Site "Rome"]
[Date "2022.01.03"]
[Round "3.2"]
[White "Maxion, Dirk"]
[Black "Aghayev, Miragha"]
[Result "0-1"]
[ECO "C77"]
[WhiteElo "2089"]
[BlackElo "2393"]
[Annotator "ChessBase"]
[PlyCount "92"]
[EventDate "2022.01.02"]
[EventType "swiss"]
[EventCountry "ITA"]
[SourceTitle "playchess.com"]
[Source "ChessBase"]
[SourceQuality "1"]
[TimeControl "5400+30"]

1. e4 {[%emt 0:00:51]} e5 {[%emt 0:05:51]} 2. Nf3 {[%emt 0:00:22]} Nc6 {[%emt 0:00:07]} 3. Bb5 {[%emt 0:01:52]} a6 {[%emt 0:00:59]} 4. Ba4 {[%emt 0:01:02]} Nf6 {[%emt 0:01:49]} 5. d3 {[%emt 0:05:31]} d6 {[%emt 0:01:50]} 6. c3 {[%emt 0:00:42]} g6 {[%emt 0:00:17]} 7. O-O {[%emt 0:03:00]} Bg7 {[%emt 0:00:07]} 8. Re1 {[%emt 0:02:36]} O-O {[%emt 0:06:09]} 9. Nbd2 {[%emt 0:00:23]} b5 {[%emt 0:01:05]} 10. Bb3 {[%emt 0:00:56]} Re8 {[%emt 0:00:50]} 11. Ng5 {[%emt 1:18:45]} Rf8 {[%emt 1:16:56]} 12. Nf1 {[%emt 0:00:00]} h6 {[%emt 0:00:30]} 13. Nf3 {[%emt 0:00:00]} d5 {[%emt 0:00:00]} 14. Ng3 {[%emt 0:00:00]} Re8 {[%emt 0:00:00]} 15. h3 {[%emt 0:00:00]} Be6 {[%emt 0:00:00]} 16. a4 {[%emt 0:00:00]} dxe4 {[%emt 0:00:00]} 17. dxe4 {[%emt 0:00:00]} Qxd1 {[%emt 0:00:00]} 18. Bxd1 {[%emt 0:00:00]} Nd7 {[%emt 0:00:00]} 19. axb5 {[%emt 0:00:00]} axb5 {[%emt 0:00:00]} 20. Rxa8 {[%emt 0:00:00]} Rxa8 {[%emt 0:00:00]} 21. Be2 {[%emt 0:00:00]} Bc4 {[%emt 0:00:00]} 22. Be3 {[%emt 0:00:00]} Bxe2 {[%emt 0:00:00]} 23. Rxe2 {[%emt 0:00:00]} Ra1+ {[%emt 0:00:00]} 24. Re1 {[%emt 0:00:00]} Ra2 {[%emt 0:00:00]} 25. Rd1 {[%emt 0:00:00]} Nf6 {[%emt 0:00:00]} 26. Rb1 {[%emt 0:00:00]} Bf8 {[%emt 0:00:00]} 27. Nd2 {[%emt 0:00:00]} Na5 {[%emt 0:00:00]} 28. Ne2 {[%emt 0:00:00]} Nc4 {[%emt 0:00:00]} 29. Nxc4 {[%emt 0:00:00]} bxc4 {[%emt 0:00:00]} 30. f3 {[%emt 0:00:00]} Nd7 {[%emt 0:00:00]} 31. Kf1 {[%emt 0:00:00]} Kg7 {[%emt 0:00:00]} 32. Nc1 {[%emt 0:00:00]} Ra8 {[%emt 0:00:00]} 33. Ne2 {[%emt 0:00:57]} Bc5 {[%emt 0:00:00]} 34. Bc1 {[%emt 0:00:39]} Bb6 {[%emt 0:00:00]} 35. Ng3 {[%emt 0:00:59]} Ra2 {[%emt 0:00:00]} 36. Ke1 {[%emt 0:02:56]} Nc5 {[%emt 0:00:00]} 37. Ne2 {[%emt 0:01:07]} Nd3+ {[%emt 0:00:00]} 38. Kd1 {[%emt 0:00:29]} Bf2 {[%emt 0:00:00]} 39. f4 {[%emt 0:01:24]} exf4 {[%emt 0:00:12]} 40. Nxf4 {[%emt 0:02:26]} Nxc1 {[%emt 0:00:16]} 41. Rxc1 {[%emt 0:00:18]} Be3 {[%emt 0:00:17]} 42. Nd5 {[%emt 0:00:15]} Bxc1 {[%emt 0:00:09]} 43. Kxc1 {[%emt 0:00:15]} Ra1+ {[%emt 0:00:12]} 44. Kd2 {[%emt 0:00:15]} Rb1 {[%emt 0:00:22]} 45. Kc2 {[%emt 0:00:07]} Re1 {[%emt 0:00:29]} 46. Nxc7 {[%emt 0:01:02]} Re2+ {[%emt 0:00:09]} 0-1

[Event "15th Lazio Festival 2022"]
[Site "Rome"]
[Date "2022.01.03"]
[Round "3.3"]
[White "D`antonio, Neri"]
[Black "Lami, Damiano"]
[Result "1/2-1/2"]
[ECO "B01"]
[WhiteElo "2280"]
[BlackElo "2019"]
[Annotator "ChessBase"]
[PlyCount "136"]
[EventDate "2022.01.02"]
[EventType "swiss"]
[EventCountry "ITA"]
[SourceTitle "playchess.com"]
[Source "ChessBase"]
[SourceQuality "1"]
[TimeControl "5400+30"]

1. e4 {[%emt 0:01:44]} d5 {[%emt 0:01:32]} 2. exd5 {[%emt 0:00:06]} Qxd5 {[%emt 0:00:46]} 3. Nc3 {[%emt 0:00:05]} Qa5 {[%emt 0:00:07]} 4. d4 {[%emt 0:00:06]} Nf6 {[%emt 0:00:06]} 5. Nf3 {[%emt 0:00:04]} Bf5 {[%emt 0:00:17]} 6. Ne5 {[%emt 0:00:15]} c6 {[%emt 0:01:30]} 7. Bd3 {[%emt 0:01:02]} Bxd3 {[%emt 0:03:35]} 8. Qxd3 {[%emt 0:00:05]} Nbd7 {[%emt 0:01:08]} 9. Nxd7 {[%emt 0:00:21]} Nxd7 {[%emt 0:00:34]} 10. O-O {[%emt 0:00:09]} e6 {[%emt 0:02:09]} 11. Ne4 {[%emt 0:00:10]} Be7 {[%emt 0:01:06]} 12. Qg3 {[%emt 0:00:07]} Rg8 {[%emt 0:17:04]} 13. c4 {[%emt 0:12:58]} O-O-O {[%emt 0:12:24]} 14. Be3 {[%emt 0:06:43]} Nf6 {[%emt 0:29:32]} 15. Nc3 {[%emt 0:07:12]} Bd6 {[%emt 0:01:21]} 16. Qf3 {[%emt 0:00:48]} Qh5 {[%emt 0:01:59]} 17. Qxh5 {[%emt 0:00:28]} Nxh5 {[%emt 0:00:05]} 18. Rfd1 {[%emt 0:05:08]} Bf4 {[%emt 0:10:42]} 19. b4 {[%emt 0:05:33]} Bxe3 {[%emt 0:05:06]} 20. fxe3 {[%emt 0:00:16]} Nf6 {[%emt 0:00:28]} 21. h3 {[%emt 0:20:59]} Rd7 {[%emt 0:00:05]} 22. Rd2 {[%emt 0:05:31]} Rgd8 {[%emt 0:00:20]} 23. Rad1 {[%emt 0:01:40]} b6 {[%emt 0:00:25]} 24. Kf2 {[%emt 0:07:06]} h6 {[%emt 0:02:17]} 25. Kf3 {[%emt 0:00:45]} Kc7 {[%emt 0:00:22]} 26. e4 {[%emt 0:24:09]} a6 {[%emt 0:08:30]} 27. a4 {[%emt 0:00:30]} Ne8 {[%emt 0:00:30]} 28. c5 {[%emt 0:00:00]} a5 {[%emt 0:00:00]} 29. cxb6+ {[%emt 0:00:00]} Kxb6 {[%emt 0:00:00]} 30. b5 {[%emt 0:00:00]} Rc7 {[%emt 0:00:00]} 31. Rb2 {[%emt 0:00:00]} cxb5 {[%emt 0:00:00]} 32. Nxb5 {[%emt 0:00:00]} Rc4 {[%emt 0:00:00]} 33. Nd6+ {[%emt 0:00:00]} Rb4 {[%emt 0:00:00]} 34. Rxb4+ {[%emt 0:00:52]} axb4 {[%emt 0:00:00]} 35. Nxf7 {[%emt 0:01:59]} Rc8 {[%emt 0:00:00]} 36. d5 {[%emt 0:01:07]} exd5 {[%emt 0:00:00]} 37. Rxd5 {[%emt 0:00:24]} Nc7 {[%emt 0:00:00]} 38. a5+ {[%emt 0:00:32]} Ka6 {[%emt 0:00:00]} 39. Rc5 {[%emt 0:00:26]} b3 {[%emt 0:00:00]} 40. Rc3 {[%emt 0:00:38]} Rb8 {[%emt 0:00:00]} 41. Rc1 {[%emt 0:00:27]} b2 {[%emt 0:00:00]} 42. Rb1 {[%emt 0:00:02]} Rf8 {[%emt 0:00:00]} 43. Rxb2 {[%emt 0:00:06]} Rxf7+ {[%emt 0:00:00]} 44. Kg4 {[%emt 0:00:35]} Kxa5 {[%emt 0:00:00]} 45. Rb8 {[%emt 0:00:50]} Ne6 {[%emt 0:00:02]} 46. g3 {[%emt 0:00:36]} Rf8 {[%emt 0:01:57]} 47. Rb7 {[%emt 0:00:22]} Re8 {[%emt 0:03:42]} 48. Kf5 {[%emt 0:00:38]} Ka6 {[%emt 0:01:12]} 49. Rd7 {[%emt 0:00:48]} Kb5 {[%emt 0:00:20]} 50. e5 {[%emt 0:00:32]} Kc5 {[%emt 0:00:11]} 51. g4 {[%emt 0:00:28]} Nd4+ {[%emt 0:01:21]} 52. Ke4 {[%emt 0:00:33]} Ne6 {[%emt 0:00:25]} 53. Kf5 {[%emt 0:00:06]} Nd4+ {[%emt 0:00:41]} 54. Ke4 {[%emt 0:00:46]} Nc6 {[%emt 0:00:31]} 55. Rxg7 {[%emt 0:00:19]} Rxe5+ {[%emt 0:00:15]} 56. Kf4 {[%emt 0:00:15]} Re6 {[%emt 0:00:10]} 57. g5 {[%emt 0:00:32]} hxg5+ {[%emt 0:00:37]} 58. Rxg5+ {[%emt 0:00:32]} Kd4 {[%emt 0:00:07]} 59. h4 {[%emt 0:00:41]} Nd8 {[%emt 0:00:55]} 60. Rg1 {[%emt 0:00:34]} Rf6+ {[%emt 0:00:21]} 61. Kg5 {[%emt 0:00:23]} Rf8 {[%emt 0:00:14]} 62. Rd1+ {[%emt 0:00:11]} Ke5 {[%emt 0:00:10]} 63. Re1+ {[%emt 0:00:27]} Kd5 {[%emt 0:00:11]} 64. h5 {[%emt 0:00:35]} Ne6+ {[%emt 0:00:07]} 65. Kg6 {[%emt 0:00:30]} Rf2 {[%emt 0:01:16]} 66. h6 {[%emt 0:00:44]} Rg2+ {[%emt 0:00:04]} 67. Kf6 {[%emt 0:00:22]} Rf2+ {[%emt 0:00:10]} 68. Kg6 {[%emt 0:00:07]} Rg2+ {[%emt 0:00:07]} 1/2-1/2